fUSD/lending_fUSD_20250115
["ID","MTS","AMOUNT","RATE_DAILY","PERIOD"]
[349122047,1736977875103,-510.3178921,0.00043013,4]
[349122048,1736977875114,-500.0,0.00043013,4]
[349122049,1736977875123,-500.0,0.00043013,4]
[349122050,1736977875133,-701.19,0.00043013,4]
[349122051,1736977875143,-500.0,0.00043013,4]
[349122052,1736977875153,-701.19,0.00043013,4]
[349122053,1736977875162,-223.05635983,0.00043013,4]
[349122054,1736977875172,-500.0,0.00043013,4]
[349122055,1736977875182,-500.0,0.00043013,4]
[349122056,1736977875191,-701.19,0.00043013,4]
[349122057,1736977875201,-500.0,0.00043013,4]
[349122058,1736977875210,-701.19,0.00043013,4]
[349122059,1736977875220,-500.0,0.00043013,4]
[349122060,1736977875232,-500.0,0.00043013,4]
[349122061,1736977875242,-500.0,0.00043013,4]
[349122062,1736977875252,-701.19,0.00043013,4]
[349122063,1736977875262,-500.0,0.00043013,4]
[349122064,1736977875272,-500.0,0.00043013,4]
[349122065,1736977875281,-701.19,0.00043013,4]
[349122066,1736977875290,-500.0,0.00043013,4]
[349122067,1736977875299,-500.0,0.00043013,4]
[349122068,1736977875309,-701.19,0.00043013,4]
[349122069,1736977875318,-500.0,0.00043013,4]
[349122070,1736977875327,-701.19,0.00043013,4]
[349122071,1736977875336,-701.19,0.00043013,4]
[349122072,1736977875346,-500.0,0.00043013,4]
[349122073,1736977875355,-500.0,0.00043013,4]
[349122074,1736977875364,-5000.0,0.00043013,4]
[349122075,1736977875373,-637.06783239,0.00043013,4]
[349122076,1736977875383,-701.19,0.00043013,4]
[349122077,1736977875392,-500.0,0.00043013,4]
[349122078,1736977875401,-5039.84902446,0.00043013,4]
[349122079,1736977875410,-500.0,0.00043013,4]
[349122080,1736977875420,-701.19,0.00043013,4]
[349122081,1736977875430,-500.0,0.00043013,4]
[349122082,1736977875439,-500.0,0.00043013,4]
[349122083,1736977875448,-701.19,0.00043013,4]
[349122084,1736977875457,-180.32807003,0.00043013,4]
[349122085,1736977876160,150.36,0.00010137,2]
[349122091,1736978131948,-150.36,0.00020708,2]
[349122094,1736978724596,150.36,0.00010137,2]
[349122107,1736979032510,-150.36,0.00022822,2]
[349122108,1736979032520,-143.64,0.00031323,2]
[349122109,1736979032532,-106.36,0.00031323,2]
[349122110,1736979032542,-1614.7,0.00031574,2]
[349122111,1736979032552,-155.79,0.00033135,2]
[349122112,1736979032562,-150.36,0.00035507,2]
[349122113,1736979032571,-629.10260946,0.00039054,7]
[349122114,1736979032581,-433.28,0.00039616,2]
[349122115,1736979032591,-1000.0,0.00041378,2]
[349122116,1736979032601,-23900.0,0.00041576,2]
[349122117,1736979032612,-289.08,0.00041635,2]
[349122118,1736979032622,-200.0,0.00041643,2]
[349122119,1736979032633,-221.16,0.00041679,120]
[349122120,1736979032642,-152.734544,0.00041758,7]
[349122121,1736979032652,-433.28,0.00041879,2]
[349122122,1736979032663,-1767.7526,0.000419,2]
[349122123,1736979032672,-446.20146166,0.0004192,30]
[349122124,1736979032682,-1000.0,0.00042,15]
[349122125,1736979032691,-1233.8376,0.00042001,2]
[349122126,1736979032701,-4116.0,0.00042047,117]
[349122127,1736979032711,-2000.0,0.000421,15]
[349122128,1736979032720,-250.0,0.00042167,2]
[349122129,1736979032730,-3100.0,0.000422,15]
[349122130,1736979032740,-250.0,0.00042278,120]
[349122131,1736979032750,-4100.0,0.000423,15]
[349122132,1736979032759,-150.0,0.000423,4]
[349122133,1736979032769,-5200.0,0.000424,15]
[349122134,1736979032778,-1000.0,0.000425,15]
[349122135,1736979032788,-270.9,0.000426,2]
[349122136,1736979032798,-1120.981,0.000426,65]
[349122137,1736979032808,-191.674,0.000426,65]
[349122138,1736979032817,-27.60052449,0.000426,15]
[349122139,1736979032835,-972.39947551,0.000426,15]
[349122140,1736979032844,-806.48520664,0.00042657,120]
[349122141,1736979032856,-200.0,0.00042668,120]
[349122142,1736979032871,-806.48520664,0.00042677,120]
[349122143,1736979032881,-2507.78531205,0.00042679,120]
[349122145,1736979032891,-318.4284161,0.00042682,120]
[349122147,1736979032901,-318.4284161,0.00042686,120]
[349122148,1736979032915,-172351.63045455,0.000427,10]
[349122149,1736979032927,-23696.75,0.000427,10]
[349122150,1736979032951,-693.6190483,0.000427,10]
[349122151,1736979032964,-607.52101284,0.000427,10]
[349122152,1736979032980,-133637.18340422,0.000427,10]
[349122154,1736979033008,-3385.20000001,0.000427,10]
[349122237,1736979038209,-150.0,0.00042047,117]
[349122238,1736979038219,-6583.11564634,0.000427,10]
[349122239,1736979038231,-14556.06787496,0.000427,10]
[349122240,1736979038252,-1662.66461586,0.000427,10]
[349122241,1736979038264,-12240.58976,0.000427,10]
[349122242,1736979038275,-2579.66123575,0.000427,10]
[349122243,1736979038292,-828005.99694717,0.000427,10]
[349122244,1736979038302,-1000.0,0.000427,15]
[349122245,1736979038312,-2507.78531205,0.00042723,120]
[349122246,1736979038322,-2714.42596579,0.00042731,120]
[349122247,1736979038333,-15400.52287482,0.00042732,120]
[349122248,1736979038343,-15400.52287482,0.00042734,120]
[349122249,1736979038353,-2507.78531205,0.00042747,120]
[349122250,1736979038363,-2714.42596579,0.00042796,120]
[349122251,1736979038373,-1853.0,0.000428,7]
[349122252,1736979038382,-1000.0,0.000428,15]
[349122253,1736979038392,-15400.52287482,0.00042808,120]
[349122254,1736979038402,-18966.77606158,0.00042809,120]
[349122255,1736979038412,-3850.3344,0.00042813,2]
[349122256,1736979038422,-3169.6553,0.00042813,2]
[349122257,1736979038431,-285.9099,0.00042813,2]
[349122258,1736979038441,-685.2082,0.00042813,2]
[349122259,1736979038451,-18966.77606158,0.00042818,120]
[349122260,1736979038460,-806.48520664,0.00042821,120]
[349122261,1736979038470,-318.4284161,0.00042834,120]
[349122262,1736979038480,-806.48520664,0.00042835,120]
[349122263,1736979038490,-318.4284161,0.00042841,120]
[349122264,1736979038499,-5473.32041296,0.00042853,120]
[349122265,1736979038511,-261.89787837,0.00042853,120]
[349122266,1736979038522,-517.8601741,0.00042853,120]
[349122267,1736979038533,-379.01652835,0.00042853,120]
[349122268,1736979038546,-12334.6810678,0.00042853,120]
[349122269,1736979038555,-5000.0,0.000429,2]
[349122270,1736979038565,-160.08812971,0.000429,15]
[349122271,1736979038574,-1786.80525249,0.000429,15]
[349122272,1736979038589,-534.72682698,0.000429,15]
[349122273,1736979038599,-1414.42317196,0.000429,15]
[349122274,1736979038612,-115.57682804,0.000429,15]
[349122275,1736979038622,-216.19138003,0.000429,4]
[349122276,1736979038632,-990.79620103,0.000429,2]
[349122279,1736979038647,-501.63226964,0.000429,2]
[349122280,1736979038658,-1007.57152933,0.000429,2]
[349122281,1736979038667,-14639.34743737,0.00042903,120]
[349122282,1736979038686,-266.06591,0.00042903,120]
[349122283,1736979038698,-495.10952745,0.00042903,120]
[349122284,1736979038707,-1703.8780404,0.00042906,120]
[349122294,1736979040388,-485.22792181,0.00042906,120]
[349122295,1736979040400,-525.32000358,0.00042906,120]
[349122296,1736979040410,-18966.77606158,0.00042908,120]
[349122297,1736979040420,-500.0,0.00042913,2]
[349122298,1736979040430,-2861.07907706,0.00042913,2]
[349122299,1736979040445,-19072.53605627,0.00042913,2]
[349122300,1736979040456,-508.37923106,0.00042913,2]
[349122301,1736979040468,-403.26300002,0.00042913,2]
[349122302,1736979040536,-10983.23,0.00042913,2]
[349122303,1736979040548,-5755.96575606,0.00042913,2]
[349122304,1736979040566,-150.0,0.000423,15]
[349122305,1736979040576,-5015.84602746,0.00042913,2]
[349122306,1736979040589,-10153.0,0.00042913,2]
[349122307,1736979040601,-2106.01055207,0.00042913,2]
[349122308,1736979040611,-4519.5833,0.00042913,2]
[349122309,1736979040620,-400.02373211,0.00042913,2]
[349122310,1736979040632,-675.99532,0.00042913,2]
[349122311,1736979040643,-426.040005,0.00042913,2]
[349122312,1736979040654,-3047.62992868,0.00042913,2]
[349122313,1736979040670,-486.7099531,0.00042913,2]
[349122314,1736979040681,-428.10574546,0.00042913,2]
[349122315,1736979040697,-1936.5,0.00042913,2]
[349122316,1736979040737,-530.07242623,0.00042913,2]
[349122317,1736979040748,-3933.84848942,0.00042913,2]
[349122318,1736979040913,-1000.0,0.00042913,2]
[349122320,1736979040934,-5721.7968,0.00042913,2]
[349122322,1736979040944,-312.12310291,0.00042913,30]
[349122324,1736979040953,-2507.78531205,0.00042916,120]
[349122326,1736979040963,-2714.42596579,0.00042928,120]
[349122327,1736979040973,-200.0,0.00042932,120]
[349122328,1736979040983,-2507.78531205,0.00042936,120]
[349122329,1736979040993,-318.4284161,0.00042938,120]
[349122330,1736979041003,-18966.77606158,0.00042952,120]
[349122331,1736979041013,-2321.53207943,0.00042956,15]
[349122332,1736979041025,-806.48520664,0.00042969,120]
[349122333,1736979041034,-15400.52287482,0.0004299,120]
[349122334,1736979041044,-2714.42596579,0.00042998,120]
[349122335,1736979041055,-10000.0,0.00043,90]
[349122336,1736979041065,-43161.93866426,0.00043,4]
[349122350,1736979043360,-549.01915472,0.00043,4]
[349122351,1736979043372,-500.0,0.00043,4]
[349122352,1736979043444,-12472.71638478,0.00043,4]
[349122353,1736979043455,-2328.66043636,0.00043,4]
[349122354,1736979043525,-347.817498,0.00043,4]
[349122355,1736979043606,-18033.69105365,0.00043,4]
[349122356,1736979043619,-918.01784343,0.00043,4]
[349122368,1736979046289,-3077.50055567,0.00043,4]
[349122369,1736979046514,-1078.35727273,0.00043,4]
[349122370,1736979046525,-384.16329,0.00043,4]
[349122371,1736979046594,-811.59520289,0.00043,4]
[349122372,1736979046606,-868.8542676,0.00043,4]
[349122373,1736979046618,-321.55127505,0.00043,4]
[349122375,1736979046813,-13146.26,0.00043,4]
[349122377,1736979046824,-7711.05653839,0.00043,4]
[349123408,1736979595833,162.2,0.00010137,2]
[349123411,1736979696097,-2346.0,0.00029,3]
[349123412,1736979696123,-2112.871,0.00029,21]
[349123413,1736979696150,-160.694,0.00029,21]
[349123414,1736979908756,587.44,0.00012,2]
[349123415,1736979908784,84688.075,0.00012,2]
[349123416,1736979908818,399849.64,0.00012,2]
[349123420,1736980038953,205.0,9.8e-05,2]
[349123426,1736980125955,1267.74572795,8e-05,2]
[349123444,1736980231589,-10113.45633,0.00011527,2]
[349123445,1736980231601,-1006.1552966,0.00011527,2]
[349123446,1736980235635,-14347.6224138,0.00011527,2]
[349123447,1736980235748,-7704.2232308,0.00011527,2]
[349123448,1736980235759,-2649.75808047,0.00011527,2]
[349123449,1736980235770,-30026.03351192,0.00011527,2]
[349123450,1736980235781,-6879.57174073,0.00011527,2]
[349123451,1736980235794,-6943.07464548,0.00011527,2]
[349123452,1736980235803,-2260.18175451,0.00011527,2]
[349123453,1736980235859,-37998.81824549,0.00011527,2]
[349123454,1736980235869,-500.0,0.00011973,2]
[349123455,1736980235878,-500.0,0.00011973,2]
[349123456,1736980235887,-500.0,0.00011973,2]
[349123457,1736980235897,-151.89257249,0.00011973,2]
[349123458,1736980235907,-151.13231319,0.00011973,2]
[349123459,1736980235917,-159.88719857,0.00011973,2]
[349123460,1736980235927,-160.88612227,0.00011973,2]
[349123461,1736980235936,-150.89327926,0.00011973,2]
[349123462,1736980235945,-357.02742706,0.00011973,2]
[349123463,1736980235955,-500.0,0.00011973,2]
[349123464,1736980235965,-500.0,0.00011973,2]
[349123466,1736980235975,-844076.5788757,0.00012,2]
[349123467,1736980235984,-500.0,0.00012521,2]
[349123469,1736980235993,-500.0,0.00012521,2]
[349123471,1736980236004,-567.26443215,0.00012521,2]
[349123474,1736980236014,-245.64942697,0.000179,2]
[349123475,1736980236023,-245.64942686,0.000179,2]
[349123477,1736980236033,-245.64942686,0.000179,2]
[349123479,1736980236042,-245.64942686,0.000179,2]
[349123481,1736980236051,-245.64942686,0.00018838,2]
[349123483,1736980236061,-1942.03783672,0.0001961,2]
[349123485,1736980236070,-3413.19560706,0.000198,2]
[349123487,1736980236079,-14336.17458598,0.000199,7]
[349123489,1736980236088,-245.64942686,0.00020442,2]
[349123491,1736980236097,-48726.98368714,0.00022,3]
[349123492,1736980236106,-245.64942686,0.00022046,2]
[349123493,1736980236115,-245.64942686,0.0002365,2]
[349123494,1736980236125,-245.64942686,0.00025254,2]
[349123495,1736980236136,-245.64942686,0.00026858,2]
[349123496,1736980236145,-206.34904149,0.00037179,9]
[349123497,1736980236154,-153.0,0.00037316,2]
[349123498,1736980236163,-153.0,0.00037326,2]
[349123499,1736980236173,-346.91042057,0.00037504,2]
[349123500,1736980236182,-629.10260947,0.00038681,7]
[349123501,1736980236193,-389.95,0.00039956,2]
[349123502,1736980236203,-100000.0,0.0004,20]
[349123503,1736980236212,-156.38,0.0004,2]
[349123504,1736980236222,-100000.0,0.00041,21]
[349123505,1736980236234,-250.0,0.00041053,2]
[349123506,1736980236244,-1000.0,0.00041053,2]
[349123507,1736980236253,-250.0,0.00041053,2]
[349123508,1736980236263,-250.0,0.00041268,120]
[349123509,1736980236273,-4453.5305611,0.00041305,30]
[349123510,1736980236282,-400.0,0.00041374,2]
[349123511,1736980236292,-5726.44579593,0.00041497,15]
[349123512,1736980236301,-5726.44579593,0.00041768,15]
[349123513,1736980236311,-156.38,0.00041772,2]
[349123514,1736980236321,-23900.0,0.00041782,2]
[349123515,1736980236330,-150.0,0.00041798,2]
[349123516,1736980236339,-5000.0,0.000419,2]
[349123517,1736980236349,-186.33,0.00041916,2]
[349123518,1736980236359,-206.34904141,0.00041996,14]
[349123519,1736980236368,-1293.25,0.00041996,2]
[349123520,1736980236378,-150.54363324,0.00041999,31]
[349123521,1736980236387,-100000.0,0.00042,22]
[349123522,1736980236396,-579.0,0.00042,2]
[349123523,1736980236406,-5726.44579593,0.0004204,15]
[349123524,1736980236415,-201.4832799,0.00042152,4]
[349123525,1736980236425,-689.99,0.00042154,120]
[349123526,1736980236434,-4116.0,0.00042163,117]
[349123527,1736980236445,-389.95,0.0004222,2]
[349123528,1736980236454,-5726.44579593,0.00042312,15]
[349123529,1736980236463,-3437.85986046,0.000424,120]
[349123530,1736980236473,-5726.44579593,0.00042584,15]
[349123531,1736980236483,-23854.15774995,0.00042681,120]
[349123532,1736980236493,-2418.57358249,0.00042726,120]
[349123533,1736980236502,-150.0,0.00042741,2]
[349123534,1736980236512,-15548.90026106,0.00042747,120]
[349123535,1736980236525,-328.995,0.00042747,120]
[349123546,1736980237452,-245.64942686,0.00028463,2]
[349123547,1736980237463,-289.08,0.00034396,2]
[349123548,1736980237473,-1655.27057314,0.00042747,120]
[349123549,1736980237486,-6320.99191575,0.00042747,120]
[349123550,1736980237497,-23854.15774995,0.00042768,120]
[349123551,1736980237507,-1533.83464387,0.0004277,30]
[349123552,1736980237516,-6752.89393479,0.0004277,120]
[349123553,1736980237525,-1382.05286592,0.00042775,120]
[349123554,1736980237534,-1382.05286592,0.00042787,120]
[349123555,1736980237544,-6752.89393479,0.00042795,120]
[349123556,1736980237553,-1989.77111385,0.000428,120]
[349123557,1736980237562,-2418.57358249,0.00042811,120]
[349123558,1736980237572,-300.0,0.00042819,2]
[349123559,1736980237581,-150.0,0.00042827,2]
[349123560,1736980237591,-150.0,0.00042829,2]
[349123561,1736980237602,-2418.57358249,0.00042833,120]
[349123562,1736980237611,-187.7062275,0.00042837,2]
[349123563,1736980237621,-5726.44579593,0.00042855,15]
[349123564,1736980237631,-2418.57358249,0.00042861,120]
[349123565,1736980237641,-6752.89393479,0.00042871,120]
[349123566,1736980237651,-1382.05286592,0.00042872,120]
[349123567,1736980237661,-1382.05286592,0.00042885,120]
[349123568,1736980237670,-23854.15774995,0.00042885,120]
[349123569,1736980237845,-23854.15774995,0.00042897,120]
[349123570,1736980237869,-500.0,0.000429,2]
[349123571,1736980237879,-549.9,0.000429,2]
[349123572,1736980237889,-310.04,0.000429,2]
[349123575,1736980237899,-1000.0,0.000429,2]
[349123577,1736980237908,-1000.0,0.000429,7]
[349123578,1736980237918,-260.57320789,0.00042902,120]
[349123580,1736980237927,-400.0,0.00042905,2]
[349123582,1736980237937,-799.59656825,0.00042913,2]
[349123583,1736980237948,-172.04835509,0.00042913,2]
[349123584,1736980237959,-538.7359645,0.00042913,2]
[349123585,1736980237969,-252.41448973,0.00042913,2]
[349123586,1736980237979,-260.57320787,0.00042957,120]
[349123587,1736980237989,-6752.89393479,0.00042959,120]
[349123588,1736980237999,-1382.05286592,0.00042967,120]
[349123589,1736980238010,-151.89257249,0.00042973,10]
[349123590,1736980238019,-151.89543031,0.00042973,10]
[349123591,1736980238028,-150.89244196,0.00042973,10]
[349123592,1736980238037,-160.8861221,0.00042973,10]
[349123593,1736980238047,-151.9391573,0.00042973,10]
[349123594,1736980238057,-260.08543787,0.00042973,10]
[349123595,1736980238066,-2418.57358249,0.00042975,120]
[349123596,1736980238076,-6752.89393479,0.00042983,120]
[349123597,1736980238085,-17540.0,0.00042986,120]
[349123598,1736980238095,-330.0,0.00042986,120]
[349123599,1736980238106,-20521.0,0.00042986,120]
[349123600,1736980238117,-156.38,0.0004299,2]
[349123601,1736980238125,-156.38,0.0004299,2]
[349123602,1736980238134,-156.38,0.0004299,2]
[349123603,1736980238144,-156.38,0.0004299,2]
[349123604,1736980238153,-156.38,0.0004299,2]
[349123605,1736980238163,-156.38,0.0004299,2]
[349123606,1736980238174,-156.38,0.0004299,2]
[349123607,1736980238185,-100000.0,0.00043,23]
[349123608,1736980238195,-100000.0,0.00043,20]
[349123609,1736980238205,-518778.86841219,0.00043,37]
[349123610,1736980238216,-900.0,0.00043,120]
[349123611,1736980238226,-2983.66690594,0.00043,120]
[349123612,1736980238240,-472588.39029147,0.00043,5]
[349123613,1736980238251,-15361.11438844,0.00043,120]
[349123614,1736980238260,-2415.0,0.00043,120]
[349123615,1736980238268,-12228.8763825,0.00043,120]
[349123616,1736980238278,-232.088016,0.00043,14]
[349123617,1736980238287,-151.0,0.00043,14]
[349123618,1736980238296,-151.0,0.00043,14]
[349123619,1736980238304,-375.0,0.00043,120]
[349123620,1736980238317,-514777.18,0.00043,120]
[349123621,1736980238327,-152.084318,0.00043,14]
[349123622,1736980238337,-1315.76342,0.00043,14]
[349123623,1736980238347,-1315.76342,0.00043,14]
[349123624,1736980238358,-151.0,0.00043,14]
[349123625,1736980238368,-151.0,0.00043,14]
[349123626,1736980238378,-151.0,0.00043,14]
[349123627,1736980238387,-151.0,0.00043,14]
[349123628,1736980238398,-151.0,0.00043,14]
[349123629,1736980238407,-151.0,0.00043,14]
[349123630,1736980238416,-151.0,0.00043,14]
[349123631,1736980238425,-151.0,0.00043,14]
[349123632,1736980238434,-151.0,0.00043,14]
[349123633,1736980238444,-198.716692,0.00043,14]
[349123634,1736980238454,-198.716692,0.00043,14]
[349123635,1736980238463,-198.716692,0.00043,14]
[349123636,1736980238472,-198.716692,0.00043,14]
[349123637,1736980238481,-151.0,0.00043,14]
[349123638,1736980238492,-151.0,0.00043,14]
[349123639,1736980238501,-151.0,0.00043,14]
[349123640,1736980238510,-217.98446718,0.00043,14]
[349123641,1736980238519,-151.0,0.00043,14]
[349123642,1736980238529,-151.073516,0.00043,14]
[349123643,1736980238539,-151.0,0.00043,14]
[349123644,1736980238549,-151.0,0.00043,14]
[349123645,1736980238557,-350.0,0.00043,120]
[349123646,1736980238567,-299.20913,0.00043,14]
[349123647,1736980238577,-299.20913,0.00043,14]
[349123648,1736980238588,-299.20913,0.00043,14]
[349123649,1736980238598,-299.20913,0.00043,14]
[349123650,1736980238609,-14334.241253,0.00043009,2]
[349123651,1736980238618,-4667.5750882,0.00043009,2]
[349123652,1736980238628,-2308.6615835,0.00043009,2]
[349123653,1736980238638,-709.635164,0.00043009,2]
[349123654,1736980238647,-4986.10217335,0.00043011,30]
[349123655,1736980238657,-300.0,0.00043012,30]
[349123656,1736980238665,-500.0,0.00043012,7]
[349123657,1736980238675,-153.385798,0.00043012,14]
[349123658,1736980238685,-2500.0,0.00043012,120]
[349123659,1736980238696,-260.57320787,0.00043013,120]
[349123660,1736980238706,-465.12383188,0.00043013,4]
[349123661,1736980238715,-500.0,0.00043013,4]
[349123662,1736980238725,-500.0,0.00043013,4]
[349123663,1736980238735,-500.0,0.00043013,4]
[349123664,1736980238745,-500.0,0.00043013,4]
[349123665,1736980238755,-500.0,0.00043013,4]
[349123666,1736980238764,-317.76000072,0.00043013,4]
[349123667,1736980238775,-312.02802649,0.00043013,4]
[349123668,1736980238785,-500.0,0.00043013,4]
[349123669,1736980238795,-500.0,0.00043013,4]
[349123670,1736980238805,-500.0,0.00043013,7]
[349123671,1736980238814,-500.0,0.00043013,4]
[349123672,1736980238824,-500.0,0.00043013,4]
[349123673,1736980238833,-500.0,0.00043013,4]
[349123674,1736980238843,-500.0,0.00043013,4]
[349123675,1736980238853,-500.0,0.00043013,4]
[349123676,1736980238862,-500.0,0.00043013,4]
[349123677,1736980238872,-500.0,0.00043013,4]
[349123678,1736980238881,-500.0,0.00043013,4]
[349123679,1736980238891,-500.0,0.00043013,4]
[349123680,1736980238901,-500.0,0.00043013,4]
[349123681,1736980238911,-173.7588863,0.00043013,4]
[349123682,1736980238920,-500.0,0.00043013,4]
[349123683,1736980238931,-500.0,0.00043013,4]
[349123684,1736980238941,-500.0,0.00043013,4]
[349123685,1736980238951,-478.24218409,0.00043013,4]
[349123686,1736980238962,-500.0,0.00043013,4]
[349123687,1736980238972,-302.77859753,0.00043013,4]
[349123688,1736980238982,-500.0,0.00043013,4]
[349123689,1736980238991,-500.0,0.00043013,4]
[349123690,1736980239000,-500.0,0.00043013,4]
[349123691,1736980239009,-500.0,0.00043013,4]
[349123692,1736980239018,-500.0,0.00043013,4]
[349123693,1736980239028,-500.0,0.00043013,4]
[349123694,1736980239038,-500.0,0.00043013,4]
[349123695,1736980239048,-502.76734816,0.00043013,4]
[349123696,1736980239057,-500.0,0.00043013,4]
[349123697,1736980239067,-284.99061735,0.00043013,4]
[349123698,1736980239077,-500.0,0.00043013,4]
[349123699,1736980239086,-500.0,0.00043013,4]
[349123700,1736980239096,-500.0,0.00043013,4]
[349123701,1736980239106,-500.0,0.00043013,4]
[349123702,1736980239115,-500.0,0.00043013,4]
[349123703,1736980239125,-500.0,0.00043013,4]
[349123704,1736980239134,-513.63,0.00043013,4]
[349123705,1736980239143,-500.0,0.00043013,4]
[349123706,1736980239153,-502.37719364,0.00043013,4]
[349123707,1736980239163,-500.0,0.00043013,4]
[349123708,1736980239174,-500.0,0.00043013,4]
[349123709,1736980239184,-500.0,0.00043013,4]
[349123710,1736980239194,-500.0,0.00043013,4]
[349123711,1736980239204,-500.0,0.00043013,4]
[349123712,1736980239213,-500.0,0.00043013,4]
[349123713,1736980239223,-500.0,0.00043013,4]
[349123714,1736980239233,-500.0,0.00043013,4]
[349123715,1736980239244,-500.0,0.00043013,4]
[349123716,1736980239254,-500.0,0.00043013,4]
[349123717,1736980239263,-500.0,0.00043013,4]
[349123719,1736980239274,-500.0,0.00043013,4]
[349123721,1736980239284,-500.0,0.00043013,4]
[349123723,1736980239293,-500.0,0.00043013,4]
[349123724,1736980239303,-500.0,0.00043013,4]
[349123725,1736980239314,-500.0,0.00043013,4]
[349123726,1736980239324,-500.0,0.00043013,4]
[349123727,1736980239334,-500.0,0.00043013,4]
[349123728,1736980239343,-501.35544198,0.00043013,4]
[349123729,1736980239352,-500.0,0.00043013,4]
[349123730,1736980239362,-500.0,0.00043013,4]
[349123731,1736980239371,-500.0,0.00043013,4]
[349123732,1736980239381,-500.0,0.00043013,4]
[349123733,1736980239390,-252.13485466,0.00043013,4]
[349123734,1736980239399,-500.0,0.00043013,4]
[349123735,1736980239409,-500.0,0.00043013,4]
[349123736,1736980239418,-500.0,0.00043013,4]
[349123737,1736980239427,-500.0,0.00043013,4]
[349123738,1736980239437,-500.0,0.00043013,4]
[349123739,1736980239447,-500.0,0.00043013,4]
[349123740,1736980239456,-500.0,0.00043013,4]
[349123741,1736980239465,-500.0,0.00043013,4]
[349123742,1736980239475,-500.0,0.00043013,4]
[349123743,1736980239484,-500.0,0.00043013,4]
[349123744,1736980239494,-500.0,0.00043013,4]
[349123745,1736980239503,-500.0,0.00043013,4]
[349123746,1736980239512,-500.0,0.00043013,4]
[349123747,1736980239522,-500.0,0.00043013,4]
[349123748,1736980239531,-500.0,0.00043013,4]
[349123749,1736980239542,-500.0,0.00043013,4]
[349123750,1736980239551,-500.0,0.00043013,4]
[349123751,1736980239560,-500.0,0.00043013,4]
[349123752,1736980239569,-500.0,0.00043013,4]
[349123753,1736980239579,-433.15052888,0.00043013,4]
[349123754,1736980239589,-500.0,0.00043013,4]
[349123755,1736980239598,-500.0,0.00043013,4]
[349123756,1736980239607,-500.0,0.00043013,4]
[349123757,1736980239617,-500.0,0.00043013,4]
[349123758,1736980239626,-500.0,0.00043013,4]
[349123759,1736980239636,-501.67156521,0.00043013,4]
[349123760,1736980239645,-302.44632373,0.00043013,4]
[349123761,1736980239654,-500.0,0.00043013,4]
[349123762,1736980239664,-500.0,0.00043013,4]
[349123763,1736980239674,-500.0,0.00043013,4]
[349123764,1736980239683,-500.0,0.00043013,4]
[349123765,1736980239693,-359.97043443,0.00043013,4]
[349123766,1736980239702,-500.0,0.00043013,4]
[349123767,1736980239711,-500.0,0.00043013,4]
[349123768,1736980239721,-500.0,0.00043013,4]
[349123769,1736980239730,-500.0,0.00043013,4]
[349123770,1736980239740,-500.0,0.00043013,4]
[349123771,1736980239749,-500.0,0.00043013,4]
[349123772,1736980239759,-500.0,0.00043013,4]
[349123773,1736980239769,-500.0,0.00043013,4]
[349123774,1736980239779,-500.0,0.00043013,4]
[349123775,1736980239788,-500.0,0.00043013,4]
[349123776,1736980239797,-500.0,0.00043013,4]
[349123777,1736980239806,-500.0,0.00043013,4]
[349123778,1736980239816,-500.0,0.00043013,4]
[349123779,1736980239825,-500.0,0.00043013,4]